bitfinex/quotes_ETHUSD_20220212
["timestamp","ask_amount","ask_price","bid_price","bid_amount"]
[1644689966249,13.4297,2972.9,2971.8,10.0]
[1644689966250,5.0,2972.3,2971.8,10.0]
[1644689966441,5.0,2972.0,2971.9,0.00364354]
[1644689966639,3.5,2972.2,2971.1,1.09147]
[1644689966640,5.1681,2972.2,2971.2,0.00364354]
[1644689966840,0.87401147,2971.5,2971.2,0.00364354]
[1644689967085,5.1681,2972.2,2971.1,0.84155]
[1644689967086,1.3512,2972.2,2971.1,0.84155]
[1644689967287,0.1681,2972.2,2971.2,0.00364354]
[1644689967488,3.985,2972.6,2971.4,1.68272]
[1644689967489,0.1681,2972.6,2971.4,1.68272]
[1644689967689,0.45736,2973.4,2971.0,0.485]
[1644689967690,0.17252896,2973.2,2971.7,0.01239276]
[1644689967888,0.1681,2973.7,2972.3,0.01236015]
[1644689968086,5.52108667,2973.8,2972.4,0.012932]
[1644689968087,0.73591832,2973.5,2972.4,0.012932]
[1644689968385,3.5,2972.6,2972.4,0.485]
[1644689968585,3.5,2972.6,2971.9,0.8514761]
[1644689968586,3.5,2972.6,2972.3,1.68197]
[1644689968790,3.5,2972.6,2971.9,0.0104161]
[1644689968791,3.5,2972.5,2971.9,0.0104161]
[1644689968991,5.1681,2972.5,2971.9,0.0104161]
[1644689969193,0.72869729,2972.4,2970.9,1.6749]
[1644689969391,0.72869729,2972.4,2971.9,0.04166702]
[1644689969392,3.5,2972.3,2971.9,0.04166702]
[1644689969590,0.1681,2972.3,2971.9,0.04166702]
[1644689970394,0.1681,2972.3,2970.9,1.5749]
[1644689970592,0.1681,2972.3,2972.0,0.0104159]
[1644689970838,3.5,2972.6,2972.0,0.0104159]
[1644689971149,3.5,2972.6,2972.1,0.485]
[1644689971343,0.77216333,2972.5,2972.1,0.485]
[1644689971540,3.5,2972.6,2972.1,0.485]
[1644689972739,3.5,2972.6,2972.1,0.385]
[1644689972943,3.5,2972.6,2972.2,0.0104088]
[1644689973641,3.6681,2972.6,2972.2,0.0104088]
[1644689973842,3.6681,2972.6,2971.9,0.01781927]
[1644689974141,3.6681,2972.6,2972.3,0.84119]
[1644689974339,3.5,2972.6,2972.3,0.8515987]
[1644689975194,3.5,2972.6,2972.3,0.84119]
[1644689975395,3.5,2972.6,2972.3,0.8515986]
[1644689975797,3.5,2972.6,2972.4,1.6823]
[1644689976000,0.17850528,2973.2,2972.4,1.6823]
[1644689976202,0.01040528,2973.2,2972.6,1.6818]
[1644689976404,0.1681,2973.7,2972.7,2.52267]
[1644689976405,0.82939142,2972.8,2972.7,2.52267]
[1644689976800,0.82939142,2972.8,2972.7,2.5330779]
[1644689977602,0.82939142,2972.8,2972.7,2.52267]
[1644689978002,0.82939142,2972.8,2972.6,0.851558]
[1644689978640,0.82939142,2972.8,2972.6,0.010408]
[1644689978840,0.82939142,2972.8,2972.2,1.72401823]
[1644689978841,0.82939142,2972.8,2972.2,1.68238]
[1644689979143,4.32939142,2972.8,2972.6,0.0104081]
[1644689979942,3.5,2972.8,2972.5,0.84118]
[1644689980144,3.5,2972.8,2972.6,0.0104081]
[1644689980342,0.01040566,2973.2,2972.6,0.0104081]
[1644689980544,0.01040566,2973.2,2972.7,1.68207]
[1644689980945,3.61935994,2974.1,2972.8,0.86880444]
[1644689981145,17.3787,2974.2,2973.3,0.84069]
[1644689981146,3.8336,2974.2,2973.3,0.84069]
[1644689981363,3.6655,2974.2,2973.3,0.84069]
[1644689981544,3.6655,2974.2,2973.4,1.68137]
[1644689981747,3.46807432,2974.1,2973.4,1.68137]
[1644689981985,3.6655,2974.2,2973.4,1.68137]
[1644689981986,0.1681,2974.0,2973.4,1.68137]
[1644689982185,3.66455748,2974.1,2973.4,1.68137]
[1644689982389,3.66455748,2974.1,2973.1,1.68138]
[1644689982788,0.82116578,2973.4,2973.1,3.36318]
[1644689983188,1.3913,2974.1,2973.1,3.36318]
[1644689983589,1.3913,2974.1,2973.2,0.0036264]
[1644689983793,1.2232,2974.1,2973.2,0.0036264]
[1644689983989,3.6655,2974.2,2973.2,0.8445064]
[1644689984190,0.70948862,2973.6,2973.3,0.0036264]
[1644689984393,0.70948862,2973.6,2973.2,0.84088]
[1644689984790,0.70948862,2973.6,2973.1,1.6854264]
[1644689984991,0.01040565,2973.5,2973.1,1.6854264]
[1644689985197,0.01040565,2973.5,2973.1,0.0036264]
[1644689985389,0.01040565,2973.5,2973.0,0.01040756]
[1644689985390,3.4273682,2973.5,2973.0,0.01040756]
[1644689985590,3.48217984,2973.5,2973.0,0.01040756]
[1644689985837,0.68618824,2973.1,2973.0,0.01040756]
[1644689986138,0.68618824,2973.1,2973.0,0.01040734]
[1644689986740,0.01040595,2973.4,2973.0,0.01040734]
[1644689987137,3.96354228,2973.7,2972.8,0.0036264]
[1644689987342,4.09601449,2974.0,2972.8,0.0036264]
[1644689987540,0.01040605,2973.3,2973.0,0.01040727]
[1644689987740,0.70184659,2973.1,2973.0,0.01040727]
[1644689988040,0.70184659,2973.1,2973.0,0.85131727]
[1644689988441,0.70184659,2973.1,2972.9,1.68183]
[1644689988643,0.70184659,2973.1,2972.9,1.69223739]
[1644689989040,0.01040583,2973.3,2972.9,1.67402839]
[1644689989241,0.01040583,2973.3,2972.9,2.51491839]
[1644689989692,3.6655,2974.2,2972.9,2.504511]
[1644689989892,2.9,2973.1,2973.0,0.01403369]
[1644689990192,0.0104059,2973.3,2973.0,0.01040729]
[1644689990799,0.1681,2974.4,2972.9,3.177151]
[1644689991000,0.45736,2975.3,2973.4,0.84065]
[1644689991002,0.1681,2974.5,2973.4,0.84065]
[1644689991198,0.1681,2975.0,2973.8,1.68099]
[1644689991501,3.5,2975.5,2973.9,7.05]
[1644689991706,2.01953564,2976.1,2974.6,5.0]
[1644689991904,1.43006734,2976.0,2975.3,5.0]
[1644689992106,1.55743564,2976.1,2975.9,0.01255838]
[1644689992302,0.63480245,2977.3,2975.9,0.70898325]
[1644689992500,0.63480245,2977.3,2976.0,0.485]
[1644689992501,2.06458513,2977.3,2976.0,0.485]
[1644689992699,1.42978268,2977.2,2976.1,0.83961]
[1644689992899,0.80260245,2977.6,2976.3,0.83983]
[1644689992900,1.42978268,2977.1,2976.3,0.83983]
[1644689993100,1.42978268,2977.1,2976.0,2.16448]
[1644689993333,1.42978268,2977.3,2976.0,2.16448]
[1644689993537,0.0098176,2976.8,2976.0,2.16448]
[1644689993834,0.0098176,2976.8,2975.6,0.485]
[1644689994032,0.87000181,2976.1,2975.6,0.485]
[1644689994233,0.0098176,2976.8,2975.6,0.485]
[1644689994434,1.42970787,2976.7,2975.5,0.25]
[1644689994636,0.168,2976.7,2975.5,0.168]
[1644689994933,0.00981915,2976.0,2975.5,0.168]
[1644689995733,0.68941087,2976.5,2975.5,0.168]
[1644689995938,0.00981933,2975.9,2975.5,0.168]
[1644689996993,0.72742571,2975.8,2975.5,0.168]
[1644689997199,0.73182288,2975.8,2975.5,0.168]
[1644689997998,0.72742571,2975.8,2975.5,0.168]
[1644689998399,0.73182289,2975.8,2975.5,0.168]
[1644689999200,0.72742571,2975.8,2975.5,0.168]
[1644689999599,0.73182289,2975.8,2975.5,0.168]
[1644690000000,0.73182289,2975.8,2974.8,0.168]
[1644690000001,0.70045829,2975.3,2974.8,0.168]
[1644690000300,0.00439718,2975.8,2974.8,0.168]
[1644690000500,0.168,2976.1,2974.8,0.168]
[1644690000738,1.1542,2976.5,2974.8,0.168]
[1644690000739,0.01044007,2975.4,2974.9,0.01044199]
[1644690001144,0.12844007,2976.1,2974.9,0.01044199]
[1644690001347,0.66314973,2975.9,2974.9,0.01044199]
[1644690001544,0.66314973,2975.9,2975.2,0.84027]
[1644690001944,0.66314973,2975.9,2974.8,1.84864]
[1644690003647,0.66314973,2975.9,2974.8,0.168]
[1644690004686,0.168,2975.8,2974.7,0.13819997]
[1644690004891,0.71314857,2975.1,2974.7,0.13819997]
[1644690005586,0.71314857,2975.1,2974.8,0.0104423]
[1644690006491,0.71314857,2975.1,2974.2,0.35210613]
[1644690006690,0.71150161,2974.6,2974.2,0.10210613]
[1644690007097,0.71150161,2974.6,2973.7,0.168]
[1644690007894,0.85591152,2973.8,2973.7,0.168]
[1644690008536,0.1681,2975.0,2974.8,4.14408848]
[1644690008932,0.485,2974.9,2974.8,4.14408848]
[1644690009133,0.653,2974.9,2974.8,4.15453078]
[1644690009534,1.35608391,2974.9,2974.8,4.15453078]
[1644690010141,1.35608391,2974.9,2974.8,4.14408848]
[1644690011144,1.35608391,2974.9,2974.7,0.0104424]
[1644690011342,1.35608391,2974.9,2973.8,0.25]
[1644690011344,0.168,2974.8,2973.8,0.25]
[1644690011540,0.168,2974.8,2974.7,0.0104424]
[1644690011745,1.00906,2974.8,2974.7,0.0104424]
[1644690011995,1.009,2974.8,2974.7,0.0104424]
[1644690012186,0.16806,2974.8,2974.7,0.0104424]
[1644690012387,0.02088479,2974.1,2973.4,0.04541446]
[1644690012588,0.02088479,2974.1,2973.4,0.0036264]
[1644690012790,0.02088479,2974.1,2973.4,0.04541387]
[1644690013389,0.75331625,2974.0,2973.4,0.04541387]
[1644690013789,0.75331625,2974.0,2972.9,0.0036264]
[1644690014089,0.75331625,2974.0,2972.6,0.36326696]
[1644690014090,0.75331625,2974.0,2973.6,0.01044464]
[1644690014289,0.1681,2973.9,2973.6,0.01044464]
[1644690014991,0.1681,2973.9,2972.7,0.0036264]
[1644690015192,0.1681,2973.9,2973.6,0.01044464]
[1644690016038,0.1681,2973.9,2972.7,0.0036264]
[1644690016440,0.1681,2973.9,2973.6,0.01044464]
[1644690017241,0.1681,2973.9,2972.7,0.0036264]
[1644690017639,0.1681,2973.9,2973.6,0.01044464]
[1644690017841,0.75331625,2974.0,2973.6,0.01044464]
[1644690018440,0.75331625,2974.0,2972.7,0.0036264]
[1644690018641,0.68276675,2973.2,2972.7,0.0036264]
[1644690018941,1.15158479,2974.1,2973.7,0.01044454]
[1644690019341,1.01158479,2974.1,2973.7,0.01044454]
[1644690019792,1.01158479,2974.1,2972.9,0.0036264]
[1644690019990,1.01158479,2974.1,2973.8,0.01044434]
[1644690020390,1.01158479,2974.1,2973.8,0.02411153]
[1644690020789,0.82983069,2974.1,2973.8,0.02411153]
[1644690020989,0.82983069,2974.1,2973.8,0.01366719]
[1644690021189,0.82983069,2974.1,2973.8,0.02411142]
[1644690021190,0.1681,2974.0,2973.8,0.02411142]
[1644690022193,0.1681,2974.0,2973.8,0.01366719]
[1644690022799,12.05,2973.9,2972.5,4.20661484]
[1644690023003,5.0,2973.1,2971.8,0.25]
[1644690023242,5.0,2972.8,2971.8,0.25]
[1644690023439,5.00006,2972.8,2971.1,0.25]
[1644690023639,3.6681,2972.7,2970.9,10.8321]
[1644690023839,5.0,2972.6,2970.7,0.25]
[1644690024039,3.6681,2972.7,2970.7,0.25]
[1644690024040,0.1681,2972.5,2970.7,0.25]
[1644690024241,11.9448,2972.7,2970.7,0.25]
[1644690024440,0.1681,2972.6,2970.7,0.25]
[1644690024639,3.5,2972.6,2970.7,0.25]
[1644690024839,0.78295686,2972.0,2971.5,0.0104424]
[1644690025241,9.6748,2972.6,2971.5,0.0104424]
[1644690025441,9.8429,2972.6,2971.5,0.0104424]
[1644690025846,9.8429,2972.6,2971.0,0.75192541]
[1644690025847,9.8429,2972.6,2971.0,0.71014956]
[1644690026046,0.1681,2972.5,2971.9,0.01044148]
[1644690026251,0.87969784,2972.1,2971.9,0.01044148]
[1644690026993,0.87969784,2972.1,2970.8,3.2117]
[1644690027187,0.87969784,2972.1,2970.8,4.05308]
[1644690027384,0.87969784,2972.1,2971.9,0.01044158]
[1644690028185,6.3429,2972.6,2971.2,0.84276602]
[1644690028388,0.1681,2972.4,2971.9,0.01044158]
[1644690028585,3.61315948,2972.5,2971.9,0.01044158]
[1644690029388,3.61315948,2972.5,2971.0,0.404]
[1644690029587,3.61315948,2972.5,2972.1,0.01044117]
[1644690030193,0.80237809,2972.4,2972.1,0.01044117]
[1644690030393,3.98342372,2972.3,2972.1,0.01044117]
[1644690030593,3.98342372,2972.3,2972.0,0.02118072]
[1644690030840,3.98342372,2972.3,2972.1,0.01044107]
[1644690031247,7.05,2972.2,2971.2,0.25]
[1644690031448,7.05,2972.2,2970.5,0.52639994]
[1644690031449,3.6681,2972.1,2970.5,0.52639994]
[1644690032244,0.65451918,2971.1,2970.5,0.52639994]
[1644690032441,3.6681,2972.1,2970.5,0.27639994]
[1644690032442,9.88016,2972.1,2970.5,0.27639994]
[1644690032640,4.88016,2972.1,2970.5,0.27639994]
[1644690033142,4.83016,2972.1,2970.5,0.27639994]
[1644690033345,9.83016,2972.1,2971.2,0.00601971]
[1644690033545,0.74766175,2972.0,2971.2,0.00601971]
[1644690033743,0.67565611,2971.2,2970.5,0.25650209]
[1644690033944,3.61064593,2971.1,2970.5,0.25650209]
[1644690034496,0.67565611,2971.2,2970.5,0.11830212]
[1644690034886,3.41401062,2971.1,2970.1,3.1651]
[1644690035086,3.41401062,2971.1,2969.9,1.29831307]
[1644690035289,3.41401062,2971.1,2970.5,1.01]
[1644690035691,0.00445071,2970.8,2970.5,1.01]
[1644690036095,0.79912168,2970.7,2970.5,1.01]
[1644690036493,0.00445071,2970.8,2970.5,1.01]
[1644690036693,3.74698581,2971.1,2970.5,1.01]
[1644690036895,0.00445086,2970.8,2970.5,1.01]
[1644690037495,0.82532896,2970.7,2970.5,1.01]
[1644690037696,0.00445086,2970.8,2970.5,1.01]
[1644690037897,9.9689,2971.6,2970.5,1.01]
[1644690038099,1.1781,2972.6,2970.5,1.02044207]
[1644690038100,0.01044085,2970.8,2970.5,1.02044207]
[1644690038737,0.01044085,2970.8,2970.6,0.70559164]
[1644690038936,0.01044085,2970.8,2970.5,1.86195207]
[1644690039137,3.39095041,2971.5,2970.5,1.85151]
[1644690039337,0.01044085,2970.8,2970.6,0.00361102]
[1644690039535,0.01044085,2970.8,2970.5,1.86195207]
[1644690039735,0.02644085,2970.8,2970.5,1.86195207]
[1644690039935,0.02644085,2970.8,2970.5,1.02044207]
[1644690040135,0.016,2970.8,2970.5,0.96]
[1644690040536,0.02584985,2970.8,2970.5,0.969851]
[1644690040945,0.02584985,2970.8,2970.6,0.1683]
[1644690041346,0.016,2970.8,2970.6,0.1683]
[1644690041743,0.02584991,2970.8,2970.6,0.1781509]
[1644690041993,0.02584991,2970.8,2970.6,0.0098509]
[1644690042686,0.016,2970.8,2970.5,0.96]
[1644690042984,0.02584991,2970.8,2970.6,0.0098509]
[1644690043787,0.02584991,2970.8,2970.5,0.96]
[1644690043788,0.016,2970.8,2970.5,0.96]
[1644690044186,0.02588956,2970.8,2970.6,0.00989055]
[1644690044991,0.016,2970.8,2970.5,0.96]
[1644690045189,0.02588956,2970.8,2970.6,0.00989055]
[1644690046238,0.016,2970.8,2970.5,0.96]
[1644690046439,0.02588956,2970.8,2970.6,0.00989055]
[1644690047440,0.016,2970.8,2970.5,0.96]
[1644690047638,0.02588691,2970.8,2970.6,0.0098879]
[1644690048139,0.02588691,2970.8,2970.6,0.00411459]
[1644690048539,0.727675,2970.8,2970.5,0.96]
[1644690049139,0.016,2970.8,2970.5,0.96]
[1644690049591,0.016,2970.8,2970.5,0.81]
[1644690050093,0.016,2970.8,2970.5,0.8159798]
[1644690050291,0.73126078,2970.8,2970.5,0.8159798]
[1644690050492,0.016,2970.8,2970.5,0.8159798]
[1644690051098,0.016,2970.8,2970.5,1.214]
[1644690051297,0.016,2970.8,2970.5,1.22443791]
[1644690051298,0.02643665,2970.8,2970.5,1.22443791]
[1644690051900,0.02643665,2970.8,2970.7,0.77902023]
[1644690052099,0.02643665,2970.8,2970.7,1.18302023]
[1644690052298,0.016,2970.8,2970.7,1.13302023]
[1644690052699,0.01043649,2970.9,2970.8,5.0]
[1644690052901,0.01043649,2970.9,2970.8,5.404]
[1644690053335,0.1683,2972.0,2971.1,1.68241]
[1644690053535,0.1683,2972.0,2971.2,0.40761102]
[1644690054037,0.1683,2972.0,2971.3,0.00361102]
[1644690054237,0.72578356,2972.2,2971.0,0.00361102]
[1644690054440,0.1681,2972.1,2970.7,0.404]
[1644690054638,0.1681,2972.1,2970.8,0.00361102]
[1644690055239,0.1681,2972.1,2970.9,0.69399198]
[1644690055441,0.1681,2972.1,2971.0,0.00361102]
[1644690055641,0.1681,2972.1,2971.0,0.17181102]
[1644690055845,0.1681,2972.1,2971.1,0.00361102]
[1644690056049,0.01043488,2971.7,2971.1,0.00361102]
[1644690057090,0.1681,2972.1,2971.1,0.00361102]
[1644690057287,0.72578356,2972.2,2971.1,0.00361102]
[1644690057288,0.01043518,2971.5,2971.2,0.1681]
[1644690057489,0.01043518,2971.5,2971.3,0.00361102]
[1644690057688,0.01043518,2971.5,2971.1,0.1681]
[1644690058193,0.1681,2972.1,2970.8,0.00361102]
[1644690058391,0.1681,2972.1,2970.6,0.1681]
[1644690058392,5.1681,2972.1,2970.6,0.00361102]
[1644690058697,0.01043538,2971.4,2970.7,0.00361102]
[1644690058892,0.70092155,2971.4,2970.7,0.00361102]
[1644690059093,4.1,2971.3,2970.5,0.94214933]
[1644690059492,0.69048617,2971.4,2970.5,0.94214933]
[1644690059695,0.69048617,2971.4,2970.5,0.77404933]
[1644690059892,0.1681,2971.3,2970.5,0.77404933]
[1644690060947,0.00445903,2971.0,2970.5,0.77404933]
[1644690061748,0.1681,2971.3,2970.5,0.77404933]
[1644690061950,0.50111076,2971.5,2970.5,0.77404933]
[1644690062149,0.01043649,2970.9,2970.5,0.78448739]
[1644690063152,0.1683,2971.8,2970.5,0.77404933]
[1644690063449,0.01043642,2970.9,2970.6,0.84148]
[1644690064050,0.01043642,2970.9,2970.8,0.79441198]
[1644690064250,6.1197,2972.0,2970.8,0.79441198]
[1644690064499,6.1197,2972.0,2971.5,0.79217406]
[1644690064690,0.1683,2972.3,2971.5,0.79217406]
[1644690065692,0.01043418,2972.0,2971.5,0.79217406]
[1644690066797,0.01989784,2972.4,2971.5,0.79217406]
[1644690066996,0.1681,2972.5,2971.5,0.79217406]
[1644690066997,0.01043448,2971.9,2971.5,0.79217406]
[1644690067196,0.01043448,2971.9,2971.6,0.404]
[1644690067796,0.51519894,2972.7,2971.4,0.84124]
[1644690067996,0.51519894,2972.7,2971.2,0.404]
[1644690067997,1.43136466,2972.6,2971.2,0.404]
[1644690068239,1.43136466,2972.6,2971.0,1.2109]
[1644690068240,1.59946466,2972.6,2971.0,1.2109]
[1644690068439,1.43136466,2972.5,2971.0,1.2109]
[1644690068941,1.43136466,2972.5,2971.7,0.83862269]
[1644690069341,0.01042895,2971.9,2971.3,0.84128]
[1644690070343,0.90223842,2972.6,2971.4,0.88228252]
[1644690070542,0.01042935,2971.7,2971.4,0.88228252]
[1644690071546,0.90223842,2972.6,2971.4,0.88228252]
[1644690071747,0.90223842,2972.6,2971.2,0.1681]
[1644690071748,0.01042945,2971.7,2971.2,0.1681]
[1644690072390,0.1681,2971.6,2970.7,0.1681]
[1644690072691,0.1681,2971.6,2970.6,3.1259]
[1644690072692,0.74027314,2971.4,2970.6,3.1259]
[1644690072887,0.3654885,2971.6,2970.5,1.4936988]
[1644690073089,0.1681,2971.5,2970.5,1.45413248]
[1644690073888,0.1681,2971.5,2970.5,1.4436988]
[1644690074087,0.01043056,2971.1,2970.5,1.4541318]
[1644690075194,3.91014745,2971.5,2970.5,1.4436988]
[1644690075389,3.91014745,2971.5,2970.6,0.00360002]
[1644690075390,0.01043096,2970.9,2970.6,0.00360002]
[1644690075590,0.01043096,2970.9,2970.5,0.73448203]
[1644690076244,3.91014745,2971.5,2970.5,0.72404933]
[1644690076445,0.01043098,2970.9,2970.6,0.00360002]
[1644690076644,0.01043098,2970.9,2970.5,1.42005363]
[1644690077545,3.91014745,2971.5,2970.5,0.72404933]
[1644690077750,0.00983759,2970.9,2970.6,0.00360002]
[1644690077950,0.00983759,2970.9,2970.5,0.7338884]
[1644690078747,3.45331236,2971.5,2970.5,0.72404933]
[1644690078947,0.00983759,2970.9,2970.6,0.00360002]
[1644690079147,0.00983759,2970.9,2970.5,0.7338884]
[1644690079787,3.45331236,2971.5,2970.5,0.72404933]
[1644690079987,3.45331236,2971.5,2970.6,0.00360002]
[1644690080192,0.00983759,2970.9,2970.6,0.00360002]
[1644690080389,0.00983759,2970.9,2970.5,0.7338884]
[1644690080993,3.45331236,2971.5,2970.5,0.72404933]
[1644690081191,3.45331236,2971.5,2970.6,0.00360002]
[1644690081393,0.00983759,2970.9,2970.6,0.00360002]
[1644690081593,0.00983759,2970.9,2970.5,0.7338884]
[1644690082193,3.45331236,2971.5,2970.5,0.72404933]
[1644690082393,3.45331236,2971.5,2970.6,0.00360002]
[1644690082593,0.00987741,2970.9,2970.6,0.00360002]
[1644690082792,0.00987741,2970.9,2970.5,0.73392823]
[1644690083440,0.1681,2971.5,2970.8,0.70102533]
[1644690083642,0.3654885,2971.6,2970.8,0.70102533]
[1644690083840,0.00987741,2970.9,2970.8,0.70102533]
[1644690084242,0.00987741,2970.9,2970.1,0.25]
[1644690084441,0.00987741,2970.9,2970.4,0.00359994]
[1644690084442,0.37518387,2970.9,2970.4,0.00359994]
[1644690084643,0.36533297,2970.9,2970.2,0.00359994]
[1644690084841,0.485,2971.3,2969.9,0.00359994]
[1644690084842,3.5,2971.2,2969.9,0.00359994]
[1644690085040,3.6683,2971.2,2969.9,0.00359994]
[1644690085241,0.71959244,2970.8,2969.9,0.00359994]
[1644690085645,13.7087,2971.2,2969.9,0.00359994]
[1644690086050,7.05,2971.1,2969.8,3.90912154]
[1644690086346,0.00390449,2970.7,2969.8,3.90912154]
[1644690086545,0.00390449,2970.7,2969.8,3.21669994]
[1644690086746,3.55966858,2970.7,2969.8,3.21669994]
[1644690087001,0.00390449,2970.7,2969.8,3.21669994]
[1644690087294,3.85845259,2971.6,2970.3,0.01278661]
[1644690087492,0.00390436,2970.7,2970.3,0.49778661]
[1644690087891,0.00390436,2970.7,2970.3,0.485]
[1644690088092,0.00390436,2970.7,2970.4,0.67715121]
[1644690088295,4.28859968,2971.7,2970.4,0.67715121]
[1644690088492,0.00987512,2970.7,2970.4,0.68702752]
[1644690088893,0.00987512,2970.7,2970.5,0.1683]
[1644690089495,0.1683,2971.7,2970.5,0.1683]
[1644690089796,0.01007542,2970.7,2970.5,0.1683]
[1644690090840,0.1683,2971.7,2970.9,0.64822035]
[1644690092238,0.01007401,2971.4,2970.9,0.64822035]
[1644690092440,0.01007401,2971.4,2970.5,0.1681]
[1644690093040,1.2760918,2971.8,2970.5,0.1681]
[1644690093239,1.2760918,2971.8,2970.4,0.1681]
[1644690093442,0.00986842,2971.1,2970.9,0.78577695]
[1644690093740,0.00986842,2971.1,2970.4,0.0098709]
[1644690094340,0.1683,2971.0,2970.2,0.25]
[1644690094587,0.1683,2971.0,2969.9,0.1681]
[1644690094786,0.00986882,2970.9,2970.4,0.00987064]
[1644690095587,0.1683,2971.1,2970.3,0.79953939]
[1644690095790,0.00986902,2970.8,2970.4,0.00987051]
[1644690096692,4.9163,2971.7,2970.3,0.79953939]
[1644690096892,0.00987541,2970.7,2970.4,0.00987673]
[1644690097093,0.00987541,2970.7,2970.4,0.17797673]
[1644690097291,0.00987541,2970.7,2970.4,0.00987673]
[1644690097891,0.67803642,2971.5,2970.3,0.79953939]
[1644690098092,0.1683,2971.4,2970.3,0.79953939]
[1644690098354,0.00987548,2970.7,2970.4,0.00987667]
[1644690099153,0.1683,2971.4,2970.3,0.79953939]
[1644690099354,0.00987548,2970.7,2970.4,0.00987667]
[1644690100354,0.6533,2971.4,2970.3,0.79953939]
[1644690100557,0.0098751,2970.7,2970.4,0.00987629]
[1644690101562,0.6533,2971.4,2970.3,0.79953939]
[1644690101563,0.6533,2971.4,2970.3,0.74953939]
[1644690101761,0.0098751,2970.7,2970.4,0.00987629]
[1644690101992,0.0098751,2970.7,2970.4,0.01347646]
[1644690102186,0.0098751,2970.7,2970.4,0.00987629]
[1644690102786,0.6533,2971.4,2970.3,0.74953939]
[1644690102987,0.6533,2971.4,2970.9,0.64369202]
[1644690102988,0.485,2971.4,2970.9,0.64369202]
[1644690103189,0.485,2971.4,2970.4,0.00987629]
[1644690103989,0.485,2971.4,2969.9,0.84528017]
[1644690104188,0.00987445,2971.0,2970.4,0.00987677]
[1644690104390,0.00987445,2971.0,2970.5,0.70764196]
[1644690105193,0.485,2971.4,2970.5,0.70764196]
[1644690105392,0.485,2971.4,2970.5,0.71124213]
[1644690105393,0.00987475,2970.9,2970.5,0.71124213]
[1644690105594,0.00987475,2970.9,2970.5,0.70764196]
[1644690106249,0.1683,2971.3,2970.5,0.70764196]
[1644690106648,0.00987485,2970.8,2970.5,0.70764196]
[1644690106848,0.00987485,2970.8,2970.5,0.30764196]
[1644690107251,0.00987485,2970.8,2970.4,0.00987651]
[1644690107450,0.1683,2971.3,2970.0,0.00360017]
[1644690107950,0.00987494,2970.8,2970.4,0.00987643]
[1644690108651,0.67542758,2971.8,2970.0,0.00360017]
[1644690108652,0.50712758,2971.8,2970.2,0.00360017]
[1644690108955,0.00987505,2970.7,2970.4,0.00987637]
[1644690109150,0.00987505,2970.7,2970.6,0.85519591]
[1644690109350,0.00987505,2970.7,2970.4,0.00987637]
[1644690109990,0.6533,2971.4,2969.9,0.00360017]
[1644690110191,0.00987511,2970.7,2970.4,0.0098763]
[1644690111195,4.50686048,2971.1,2970.1,0.7626442]
[1644690111394,4.50686048,2971.1,2970.4,0.00987631]
[1644690111395,0.00987512,2970.7,2970.4,0.00987631]
[1644690112297,0.1683,2971.0,2970.2,0.00360017]
[1644690112494,0.1683,2971.0,2970.4,0.00987631]
[1644690112695,0.00987512,2970.7,2970.4,0.00987631]
[1644690113541,3.71682234,2971.1,2970.2,0.00360017]
[1644690113739,0.00987512,2970.7,2970.4,0.00987631]
[1644690114748,3.71682234,2971.1,2970.2,0.00360017]
[1644690114945,0.00987509,2970.7,2970.4,0.00987627]
[1644690115747,0.485,2970.6,2970.4,0.00987627]
[1644690115951,0.485,2970.6,2969.7,10.0]
[1644690115952,7.05,2970.5,2969.7,10.0]
[1644690116250,7.535,2970.5,2969.8,0.6637736]
[1644690116849,7.535,2970.5,2969.7,10.0]
[1644690117900,3.24353915,2970.4,2969.7,10.0]
[1644690118101,3.32407864,2970.4,2969.7,9.95]
[1644690118303,3.26586055,2970.3,2969.7,9.95]
[1644690118502,3.90960396,2970.6,2969.4,0.92107239]
[1644690118703,3.91973908,2970.6,2969.9,0.01013753]
[1644690118903,4.68638909,2970.6,2969.9,0.01013753]
[1644690119503,4.68638909,2970.6,2969.7,10.88655319]
[1644690119504,4.67625397,2970.6,2969.7,10.88655319]
[1644690119704,3.90960396,2970.6,2969.7,10.88655319]
[1644690120004,3.90960396,2970.6,2970.1,0.01013713]
[1644690120007,0.17843541,2970.6,2970.1,0.01013713]
[1644690120205,0.01013541,2970.6,2970.1,0.01013713]
[1644690120741,3.5,2971.1,2969.8,0.8417]
[1644690120943,3.5,2971.1,2970.4,0.84604714]
[1644690121144,10.29,2971.2,2970.4,0.84604714]
[1644690121145,0.01013555,2970.6,2970.4,0.84604714]
[1644690121542,0.01013555,2970.6,2970.2,0.01013693]
[1644690122048,9.8004,2971.2,2969.8,1.1426]
[1644690122243,0.00982772,2970.6,2970.3,0.00982889]
[1644690122443,0.00982772,2970.6,2970.3,0.65687939]
[1644690123245,9.8004,2971.2,2970.3,0.6470505]
[1644690123445,0.00982778,2970.6,2970.3,0.65687946]
[1644690124247,0.00982778,2970.6,2970.4,0.1683]
[1644690124504,0.1683,2971.6,2970.4,0.1683]
[1644690124698,0.00982778,2970.6,2970.4,0.1683]
[1644690125695,0.71803961,2971.4,2970.4,0.1683]
[1644690125898,0.0098431,2970.6,2970.4,0.1683]
[1644690126900,3.27132587,2971.3,2970.4,0.1683]
[1644690127098,0.71803961,2971.4,2970.4,0.1683]
[1644690127499,3.32259073,2971.3,2970.4,0.1683]
[1644690127699,0.71803961,2971.4,2970.4,0.1683]
[1644690127899,3.28544061,2971.3,2970.4,0.1683]
[1644690128340,0.71803961,2971.4,2970.4,0.1683]
[1644690128540,3.28713258,2971.3,2970.4,0.1683]
[1644690128739,0.71803961,2971.4,2970.4,0.1683]
[1644690128941,3.5,2971.3,2970.4,0.1683]
[1644690129140,3.5,2971.3,2970.3,3.02523108]
[1644690129141,0.1683,2971.2,2970.3,3.0193]
[1644690129441,0.01039324,2971.0,2970.3,3.02969603]
[1644690129844,0.75535993,2970.9,2970.3,3.02969603]
[1644690130040,0.75535993,2970.9,2970.3,0.01039603]
[1644690130041,0.92365993,2970.9,2970.3,0.01039603]
[1644690130542,0.92365993,2970.9,2969.7,13.4129]
[1644690130745,0.00446375,2970.7,2969.7,13.4129]
[1644690130947,0.00446375,2970.7,2969.7,13.1629]